Cogmind - Beta 12 @@@ ROGUE MODE // 2023.11.20 @ 04:34:18 Player: kaj Result: Destroyed by Y-64 Sentinel with KE Penetrator Performance ------------- Evolutions (6) 3000 Regions Visited (14) 2800 Robots Destroyed (48) 240 Value Destroyed (2255) 2255 Prototype IDs (28) 560 Alien Tech Used (0) 0 Bonus (953) 953 TOTAL SCORE: 9808 Bonus ------- Follower Combat Kills 170 Entered DSFs 500 Aligned with FarCom 300 Friendly Fire -17 Cogmind --------- Core Integrity 0/1150 Matter 248/300 Energy 92/100 System Corruption 23% Temperature Cool (13) Movement Flying (27) Location -4/Extension Parts ------- > --- POWER (2) -------- (None) > --- PROPULSION (4) --- Improved Gyrokinetic Inverter Improved Surge Thruster Improved Surge Thruster Improved Surge Thruster > --- UTILITY (10) ----- Advanced Targeting Computer Core Analyzer Core Analyzer Improved Phase Shifter > --- WEAPON (3) ------- (None) > --- INVENTORY (5) ---- Large Matter Pod (0) Peak State ------------ > --- POWER ------------ Improved Deuterium Engine Angular-Fission Engine > --- PROPULSION ------- Treaded Heavy-Armored Exoskeleton > --- UTILITY ---------- Armored Scrap Engine Advanced Heat Sink Improved Trap Scanner Targeting Computer Advanced Targeting Computer Core Analyzer Core Analyzer Kinecellerator > --- WEAPON ----------- Plasma Rifle Heavy Proton Cannon Shotgun Laser Plasma Construct/G > --- INVENTORY -------- Large Matter Pod Plasma Rifle Heavy Plasma Cannon [Rating: 77] Favorites ----------- Power Light Nuclear Core Engine Constructs Power Core Light Nuclear Core Propulsion Light Treads Treads Light Treads Leg Aluminum Leg Wheel Compact Wheel Hover Unit Improved Gyrokinetic Inverter Flight Unit Improved Surge Thruster Utility Large Storage Unit Device Structural Scanner Storage Large Storage Unit Processor Targeting Computer Protection Hardened Medium Armor Plating Weapon Light Assault Rifle Energy Gun Constructs Energy Cannon Heavy Proton Cannon Ballistic Gun Light Assault Rifle Ballistic Cannon Assault Cannon Launcher Long-range Missile Launcher Special Weapon Field Lobotomy Kit Impact Weapon Maul Slashing Weapon Scythe Build | -11 -10 -10 -10 -9 -8 -8 -8 -6 -6 -6 -5 -5 -4 -4 ------- Run | Jun Mat Min Exi Min Mat Sto Rec Fac Was Fac Fac DSF Fac Ext Slots Evolved 12 | . . . . . 4 . . 4 . . 2 . 2 . Power 1 | . . . . . . . . 1 . . . . . . Propulsion 2 | . . . . . 2 . . . . . . . . . Utility 8 | . . . . . 2 . . 2 . . 2 . 2 . Weapon 1 | . . . . . . . . 1 . . . . . . Parts Attached 93 | 2 3 1 2 . 23 6 2 4 5 14 4 . 22 5 Power 9 | . 1 . . . 2 1 . 1 . 2 . . 2 . Engine 3 | . . . . . 1 . . . . 2 . . . . Core 6 | . 1 . . . 1 1 . 1 . . . . 2 . Reactor . | . . . . . . . . . . . . . . . Propulsion 31 | 2 . 1 . . 10 4 . . 1 4 . . 6 3 Treads 15 | 1 . 1 . . 7 4 . . 1 1 . . . . Leg 3 | . . . . . 2 . . . . 1 . . . . Wheel 5 | 1 . . . . 1 . . . . 2 . . 1 . Hover 4 | . . . . . . . . . . . . . 4 . Flight 4 | . . . . . . . . . . . . . 1 3 Utility 24 | . 2 . . . 6 . 1 2 1 5 2 . 3 2 Device 11 | . 1 . . . 1 . 1 1 . 2 1 . 3 1 Storage 4 | . 1 . . . 1 . . . 1 . . . . 1 Processor 6 | . . . . . 2 . . . . 3 1 . . . Hackware . | . . . . . . . . . . . . . . . Protection 3 | . . . . . 2 . . 1 . . . . . . Artifact . | . . . . . . . . . . . . . . . Weapon 29 | . . . 2 . 5 1 1 1 3 3 2 . 11 . Energy Gun 9 | . . . . . . . . . . 3 . . 6 . Energy Cannon 4 | . . . . . . . . . . . 2 . 2 . Ballistic Gun 6 | . . . 2 . 4 . . . . . . . . . Ballistic Cannon 4 | . . . . . . 1 1 1 . . . . 1 . Launcher 2 | . . . . . . . . . . . . . 2 . Special Weapon 2 | . . . . . 1 . . . 1 . . . . . Impact Weapon 1 | . . . . . . . . . 1 . . . . . Slashing Weapon 1 | . . . . . . . . . 1 . . . . . Piercing Weapon . | . . . . . . . . . . . . . . . Special Melee Weapon . | . . . . . . . . . . . . . . . Unidentified Prototypes 2 | . . . . . . . . . . . 1 . 1 . Corrupted Parts 2 | . . . . . . . . . . . . . . 2 System Corruption 17 | . . . . . . . . . . . . . . 17 Parts Lost 51 | . . 3 . . 12 1 . . 6 2 . 3 24 . Power 5 | . . . . . 1 . . . . 1 . . 3 . Propulsion 18 | . . 1 . . 6 . . . 2 1 . 2 6 . Utility 12 | . . . . . 2 . . . 2 . . . 8 . Weapon 16 | . . 2 . . 3 1 . . 2 . . 1 7 . Highest Loss Streak 11 | . . 2 . . 6 1 . . 6 1 . 2 11 . To Critical Strikes 2 | . . . . . . . . . 1 . . . 1 . Average Slot Usage (%) 82 | . 88 97 78 100 95 98 83 86 56 75 87 81 56 41 Engine 3 | . 5 . . . 4 . . . . 7 11 11 5 . Core 6 | . 8 14 14 14 4 9 9 13 6 3 . . . . Treads 18 | . 14 25 28 28 23 35 29 20 13 7 5 5 2 . Leg 2 | . . . . . 9 . . . . 2 . . . . Wheel 2 | . 14 2 . . 1 . . . . 4 11 7 . . Device 11 | . 2 14 14 14 12 9 9 13 10 12 16 17 11 4 Storage 7 | . 14 14 14 14 10 9 9 6 4 . . . . . Processor 9 | . . . . . 7 9 9 6 6 19 23 23 20 15 Protection 1 | . . . . . 3 9 . 6 2 . . . . . Energy Gun 2 | . . . . . . . . . . 10 11 . 4 . Ballistic Gun 9 | . 28 25 7 28 17 12 . . . . 3 5 1 . Ballistic Cannon 3 | . . . . . . 5 17 20 10 6 2 . 1 . Naked Turns . | . . . . . . . . . . . . . . . Heaviest Build 50 | 14 30 30 29 29 38 42 36 50 50 35 47 47 43 2 Greatest Support 88 | 10 10 20 20 20 86 88 88 70 70 45 32 36 38 12 Greatest Overweight (x) 12 | 1 2 2 1 1 3 . . . 1 1 1 2 12 . Average Overweight (x) . | 1 1 1 1 1 . . . . . . 1 1 . . Largest Inventory Capacity 15 | 8 15 15 15 15 15 15 15 15 15 5 5 5 5 5 Average Capacity 11 | 8 9 15 15 15 15 15 15 15 12 5 5 5 5 5 Most Carried 15 | 6 8 12 13 11 15 15 15 11 11 5 5 5 5 4 Average Carried 8 | 6 7 10 11 11 12 14 11 10 8 4 3 4 3 1 Final Capacity 15 | 8 15 15 15 15 15 15 15 15 5 5 5 5 5 5 Final Carried 15 | 6 8 12 11 11 14 15 12 11 4 5 5 5 5 1 Scrap Engine Consumption 57 | . . . . . . . 16 2 11 12 . 15 1 . Constructs Created 5 | . . . . . . . 1 . 1 3 . . . . Constructs Modified 12 | . . . . . . . 1 . . 6 3 1 1 . Class Distribution -------------------- 53% | Mutant 14% | Scavenger-Gunner 10% | Scavenger-Mutant 8% | Skirmisher 7% | Gunner 5% | Scavenger-Skirmisher Dominant Class ---------------- Mutant | -10/Materials Mutant | -10/Mines Mutant | -10/Exiles Mutant | -9/Mines Skirmisher | -8/Materials Scavenger-Mutant | -8/Storage Mutant | -8/Recycling Scavenger-Skirmisher | -6/Factory Mutant | -6/Waste Scavenger-Gunner | -6/Factory Scavenger-Gunner | -5/Factory Mutant | -5/DSF Gunner | -4/Factory Mutant | -4/Extension Resources | -11 -10 -10 -10 -9 -8 -8 -8 -6 -6 -6 -5 -5 -4 -4 ----------- Run | Jun Mat Min Exi Min Mat Sto Rec Fac Was Fac Fac DSF Fac Ext Matter Collected 1865 | 211 110 144 . 21 513 168 40 12 112 328 . 39 167 . Remotely . | . . . . . . . . . . . . . . . Salvage Created 2108 | . 110 55 . . 536 403 54 . . 611 . 74 265 . Parts 103 | . 4 8 . . 24 19 5 . . 24 . 5 14 . Haulers Intercepted . | . . . . . . . . . . . . . . . Recyclers Shooed . | . . . . . . . . . . . . . . . Parts Field Recycled . | . . . . . . . . . . . . . . . Retrieved Matter . | . . . . . . . . . . . . . . . Parts Self-Destructed . | . . . . . . . . . . . . . . . Prevented . | . . . . . . . . . . . . . . . Kills | -11 -10 -10 -10 -9 -8 -8 -8 -6 -6 -6 -5 -5 -4 -4 ------- Run | Jun Mat Min Exi Min Mat Sto Rec Fac Was Fac Fac DSF Fac Ext Combat Hostiles Destroyed 44 | . 3 4 . . 10 8 1 . . 9 . 1 8 . Guns 28 | . 3 4 . . 10 5 . . . 3 . 1 2 . Cannons 11 | . . . . . . 3 1 . . 6 . . 1 . AOE 5 | . . . . . . . . . . . . . 5 . Classes Destroyed 11 | . 2 . . . 3 . . . . 1 . 1 4 . Worker 2 | . . . . . 1 . . . . . . . 1 . Recycler 1 | . . . . . . . . . . 1 . . . . Mechanic 1 | . . . . . . . . . . . . . 1 . Swarmer 5 | . 1 4 . . . . . . . . . . . . Cutter 2 | . . . . . . . . . . . . . 2 . Grunt 22 | . 2 . . . 7 6 . . . 7 . . . . Brawler 1 | . . . . . 1 . . . . . . . . . Sentry 7 | . . . . . 2 2 1 . . 2 . . . . Specialist 1 | . . . . . . . . . . . . 1 . . Hunter 2 | . . . . . . . . . . . . . 2 . Programmer 4 | . . . . . . . . . . . . . 4 . Best Kill Streak 6 | . 2 3 . . 3 6 1 . . 4 . 1 3 . Combat Bots Only 6 | . 2 3 . . 3 6 1 . . 4 . 1 2 . Max Kills in Single Turn 2 | . 1 1 . . 1 1 1 . . 1 . 1 2 . Gunslinging . | . . . . . . . . . . . . . . . Exploded 2 | . . . . . . . . . . . . . 2 . Melee . | . . . . . . . . . . . . . . . Uniques/NPCs Destroyed . | . . . . . . . . . . . . . . . Combat | -11 -10 -10 -10 -9 -8 -8 -8 -6 -6 -6 -5 -5 -4 -4 -------- Run | Jun Mat Min Exi Min Mat Sto Rec Fac Was Fac Fac DSF Fac Ext Damage Taken 8559 | . 186 311 . . 1580 677 . . 780 903 . 603 3476 43 Core 1885 | . 24 70 . . 131 102 . . 109 182 . 109 1138 20 Absorbed by Shields . | . . . . . . . . . . . . . . . Regen/Repaired (Parts) 799 | . . . . . . . . 6 113 285 150 31 214 . Core Remaining (%) 74 | 100 . . . 62 . . 57 . . 65 . 89 . . Volleys Fired 203 | . 16 15 . . 72 24 1 1 2 48 . 3 21 . Largest 3 | . 2 2 . . 2 2 2 3 2 3 . 3 3 . Hottest 202 | . 40 40 . . 43 67 88 132 88 190 . 202 196 . Shots Fired 373 | . 32 30 . . 143 47 2 3 3 67 . 7 39 . Gun 283 | . 32 30 . . 142 40 . . . 19 . 3 17 . Cannon 82 | . . . . . . 7 2 3 2 48 . 4 16 . Launcher 6 | . . . . . . . . . . . . . 6 . Special 2 | . . . . . 1 . . . 1 . . . . . Kinetic 319 | . 32 30 . . 142 47 2 3 2 48 . 3 10 . Thermal 35 | . . . . . . . . . . 19 . . 16 . Explosive 6 | . . . . . . . . . . . . . 6 . Electromagnetic 11 | . . . . . . . . . . . . 4 7 . Robot Hit Streak 28 | . 6 2 . . 16 15 9 1 4 28 . 7 11 . Robot Miss Streak 7 | . 3 7 . . 3 2 . 2 . 1 . 3 2 . Penetration Max . | . . . . . . . . . . . . . . . Secondary Targets 4 | . . 2 . . 1 1 . . . . . . . . Max Gunslinging Chain 1 | . . 1 . . 1 1 . . . . . . . . Shots Hit Robots 262 | . 20 10 . . 99 41 1 1 5 52 . 5 28 . Core Hits 120 | . 6 4 . . 38 18 1 . . 25 . 3 25 . Critical Kills 2 | . . . . . 1 1 . . . . . . . . Critical Parts Destroyed . | . . . . . . . . . . . . . . . Critical Strikes 6 | . . . . . 1 2 . . 1 . . . 2 . Burn 1 | . . . . . . . . . . . . . 1 . Destroy 2 | . . . . . 1 1 . . . . . . . . Blast 3 | . . . . . . 1 . . 1 . . . 1 . Melee Attacks 2 | . . . . . . . . . 2 . . . . . Impact 1 | . . . . . . . . . 1 . . . . . Slashing 1 | . . . . . . . . . 1 . . . . . Piercing . | . . . . . . . . . . . . . . . Sneak Attacks . | . . . . . . . . . . . . . . . Combat Hostiles . | . . . . . . . . . . . . . . . Follow-up Attacks . | . . . . . . . . . . . . . . . Damage Inflicted 4526 | . 247 135 . . 889 605 25 25 110 1072 . 112 1306 . Guns 2290 | . 247 135 . . 889 447 . . . 207 . 46 319 . Cannons 1510 | . . . . . . 158 25 25 44 865 . 60 333 . Explosions 650 | . . . . . . . . . . . . . 650 . Melee 63 | . . . . . . . . . 63 . . . . . Ramming 13 | . . . . . . . . . 3 . . 6 4 . Kinetic 3110 | . 247 135 . . 889 605 25 25 44 865 . 46 229 . Thermal 601 | . . . . . . . . . . 207 . . 394 . Explosive 650 | . . . . . . . . . . . . . 650 . Electromagnetic 89 | . . . . . . . . . . . . 60 29 . Impact 48 | . . . . . . . . . 48 . . . . . Slashing 15 | . . . . . . . . . 15 . . . . . Piercing . | . . . . . . . . . . . . . . . Highest Corruption 23 | . . . . . . . . . 15 15 . . 6 23 Average Corruption 11 | . . . . . . . . . 9 15 . . 3 22 Corruption Purged . | . . . . . . . . . . . . . . . Corruption Blocked . | . . . . . . . . . . . . . . . Effects 59 | . . . . . . . . . 10 38 . . 8 3 Message Errors 10 | . . . . . . . . . 2 6 . . 1 1 Matter Fused 13 | . . . . . . . . . 2 7 . . 2 2 Heat Flow Errors 9 | . . . . . . . . . 2 5 . . 2 . Energy Discharges 11 | . . . . . . . . . 1 8 . . 2 . Parts Rejected 1 | . . . . . . . . . . 1 . . . . Data Loss (minor) 7 | . . . . . . . . . 1 6 . . . . Data Loss (major) 1 | . . . . . . . . . . 1 . . . . Misfires 2 | . . . . . . . . . . 1 . . 1 . Alerts 1 | . . . . . . . . . . 1 . . . . Misdirections 2 | . . . . . . . . . 2 . . . . . Weapon Failures 2 | . . . . . . . . . . 2 . . . . Overload Shots . | . . . . . . . . . . . . . . . Overflow Damage 141 | . . . . . . . . . . . . . 141 . Projectiles 2 | . . . . . . . . . . . . . 2 . Explosions 139 | . . . . . . . . . . . . . 139 . Melee . | . . . . . . . . . . . . . . . Knockbacks 19 | . . . . . . . . . . 15 . . 4 . Impact . | . . . . . . . . . . . . . . . Kinetic 15 | . . . . . . . . . . 11 . . 4 . Secondary 4 | . . . . . . . . . . 4 . . . . Self-Inflicted Damage 497 | . . . . . . . . . . . . . 497 . Shots 8 | . . . . . . . . . . . . . 8 . Rammed 3 | . . . . . . . . . 1 . . 1 1 . Targets Rammed 3 | . . . . . . . . . 1 . . 1 1 . Kicked . | . . . . . . . . . . . . . . . Crushed . | . . . . . . . . . . . . . . . Highest Temperature 261 | . 2 . . . 21 99 15 15 172 261 . 79 242 . Average Temperature 53 | . 2 . . . 6 43 10 10 84 105 . 52 56 . Received Heat Transfer 1849 | . 90 . . . 828 297 . . . 409 . 108 108 9 Siege Activations . | . . . . . . . . . . . . . . . Robots Corrupted . | . . . . . . . . . . . . . . . Combat Hostiles . | . . . . . . . . . . . . . . . Parts Fried . | . . . . . . . . . . . . . . . Impact Corruptions . | . . . . . . . . . . . . . . . Robots Melted . | . . . . . . . . . . . . . . . Combat Hostiles . | . . . . . . . . . . . . . . . Parts Melted 3 | . . . . . . . . . . . . . 3 . Heat Transferred 1687 | . . . . . . . . . . 487 . . 1200 . Parts Sabotaged . | . . . . . . . . . . . . . . . Parts Stolen . | . . . . . . . . . . . . . . . Parts Stripped . | . . . . . . . . . . . . . . . Power Chain Reactions . | . . . . . . . . . . . . . . . Missiles Intercepted . | . . . . . . . . . . . . . . . Alert | -11 -10 -10 -10 -9 -8 -8 -8 -6 -6 -6 -5 -5 -4 -4 ------- Run | Jun Mat Min Exi Min Mat Sto Rec Fac Was Fac Fac DSF Fac Ext Peak Influence 340 | . 185 167 . . 106 235 98 28 30 173 32 70 340 181 Initial 151 | . . 72 . . . 15 91 8 9 21 32 25 31 151 Average 69 | . 92 159 . . 43 140 80 22 11 69 32 43 75 154 Maximum Alert Level 1 | . . . . . . 1 . . . . . . 1 . Low Security (%) 96 | 100 100 100 . 100 100 68 100 100 100 100 100 100 88 100 Level 1 3 | . . . . . . 31 . . . . . . 11 . Level 2 . | . . . . . . . . . . . . . . . Level 3 . | . . . . . . . . . . . . . . . Level 4 . | . . . . . . . . . . . . . . . Level 5 . | . . . . . . . . . . . . . . . High Security . | . . . . . . . . . . . . . . . Max Security . | . . . . . . . . . . . . . . . Squads Dispatched 14 | . 2 . . 1 1 1 . 2 . 2 . 1 3 1 Investigation 3 | . 1 . . . . 1 . . . . . . 1 . Extermination 2 | . . . . . . . . . . 1 . . 1 . Reinforcement 7 | . 1 . . . 1 . . 2 . . . 1 1 1 Assault 1 | . . . . 1 . . . . . . . . . . Garrison 1 | . . . . . . . . . . 1 . . . . Intercept . | . . . . . . . . . . . . . . . Searches Triggered . | . . . . . . . . . . . . . . . Construction Impeded . | . . . . . . . . . . . . . . . Haulers Reinforced . | . . . . . . . . . . . . . . . Active Scanning Responses . | . . . . . . . . . . . . . . . Cargo Convoy Interrupts . | . . . . . . . . . . . . . . . Stealth | -11 -10 -10 -10 -9 -8 -8 -8 -6 -6 -6 -5 -5 -4 -4 --------- Run | Jun Mat Min Exi Min Mat Sto Rec Fac Was Fac Fac DSF Fac Ext Distress Signals 6 | . . . . . 2 2 . 1 . . . . . 1 Communications Jammed . | . . . . . . . . . . . . . . . Distress Signals . | . . . . . . . . . . . . . . . Times Spotted 113 | . 8 25 . . 24 10 1 1 6 9 . 5 21 3 Peak Tracking Total 15 | . 4 15 . . 6 7 1 1 4 4 . 4 5 2 Tactical Retreats 8 | . 1 . . . 1 1 . . . . . 3 2 . Traps | -11 -10 -10 -10 -9 -8 -8 -8 -6 -6 -6 -5 -5 -4 -4 ------- Run | Jun Mat Min Exi Min Mat Sto Rec Fac Was Fac Fac DSF Fac Ext Traps Triggered 6 | . 1 . . . . 3 . 1 . . . 1 . . Indirectly . | . . . . . . . . . . . . . . . Trap Hack Attempts . | . . . . . . . . . . . . . . . Triggered . | . . . . . . . . . . . . . . . Disarmed . | . . . . . . . . . . . . . . . Reprogrammed . | . . . . . . . . . . . . . . . Reused . | . . . . . . . . . . . . . . . Traps Extracted . | . . . . . . . . . . . . . . . Installed . | . . . . . . . . . . . . . . . Triggered . | . . . . . . . . . . . . . . . Machines | -11 -10 -10 -10 -9 -8 -8 -8 -6 -6 -6 -5 -5 -4 -4 ---------- Run | Jun Mat Min Exi Min Mat Sto Rec Fac Was Fac Fac DSF Fac Ext Machines Disabled 15 | . 1 1 . . . . . 1 . 4 . . 8 . Max in Single Turn 2 | . 1 1 . . . . . 1 . 2 . . 2 . Machines Repaired . | . . . . . . . . . . . . . . . Machines Sabotaged . | . . . . . . . . . . . . . . . Overloaded Fab Kills . | . . . . . . . . . . . . . . . Hacking | -11 -10 -10 -10 -9 -8 -8 -8 -6 -6 -6 -5 -5 -4 -4 --------- Run | Jun Mat Min Exi Min Mat Sto Rec Fac Was Fac Fac DSF Fac Ext Machines Accessed 11 | . 2 . 1 . 2 1 1 1 . 1 1 . 1 . Terminals 10 | . 2 . . . 2 1 1 1 . 1 1 . 1 . Fabricators . | . . . . . . . . . . . . . . . Repair Stations . | . . . . . . . . . . . . . . . Recycling Units . | . . . . . . . . . . . . . . . Scanalyzers . | . . . . . . . . . . . . . . . Garrison Access . | . . . . . . . . . . . . . . . Total Hacks 22 | . 3 . 1 . 6 2 2 3 . 1 1 . 3 . Successful 8 | . . . 1 . 3 . 1 1 . . 1 . 1 . Failed 14 | . 3 . . . 3 2 1 2 . 1 . . 2 . Catastrophic 6 | . 3 . . . 1 1 1 . . . . . . . Database Lockouts . | . . . . . . . . . . . . . . . Manual 15 | . 3 . 1 . 6 3 1 . . 1 . . . . Terminals 21 | . 3 . . . 6 2 2 3 . 1 1 . 3 . Fabricators . | . . . . . . . . . . . . . . . Repair Stations . | . . . . . . . . . . . . . . . Recycling Units . | . . . . . . . . . . . . . . . Scanalyzers . | . . . . . . . . . . . . . . . Garrison Access . | . . . . . . . . . . . . . . . Terminal Hacks 8 | . . . 1 . 3 . 1 1 . . 1 . 1 . Robot Analysis 3 | . . . . . 3 . . . . . . . . . Open DSF 3 | . . . . . . . . 1 . . 1 . 1 . Branch Access Points 1 | . . . . . . . 1 . . . . . . . EX-Prototype ID Bank 1 | . . . 1 . . . . . . . . . . . Fabricator Hacks . | . . . . . . . . . . . . . . . Repair Station Hacks . | . . . . . . . . . . . . . . . Recycling Unit Hacks . | . . . . . . . . . . . . . . . Scanalyzer . | . . . . . . . . . . . . . . . Garrison Access Hacks . | . . . . . . . . . . . . . . . Unauthorized Hacks . | . . . . . . . . . . . . . . . Terminals . | . . . . . . . . . . . . . . . Fabricators . | . . . . . . . . . . . . . . . Repair Stations . | . . . . . . . . . . . . . . . Recycling Units . | . . . . . . . . . . . . . . . Scanalyzers . | . . . . . . . . . . . . . . . Garrison Access . | . . . . . . . . . . . . . . . Data Cores Recovered 1 | . . . . . . . . 1 . . . . . . Used . | . . . . . . . . . . . . . . . Hacking Detections 9 | . 2 . . . 2 2 . 1 . . 1 . 1 . Full Trace Events 3 | . . . . . . 2 . . . . . . 1 . Feedback Events 1 | . . . . . . . . . . . . . 1 . Corruption 1 | . . . . . . . . . . . . . 1 . Feedback Blocked . | . . . . . . . . . . . . . . . Robot Schematics Acquired . | . . . . . . . . . . . . . . . Robots Built . | . . . . . . . . . . . . . . . Authchips . | . . . . . . . . . . . . . . . Time . | . . . . . . . . . . . . . . . Total Robot Build Rating . | . . . . . . . . . . . . . . . Part Schematics Acquired . | . . . . . . . . . . . . . . . Parts Built . | . . . . . . . . . . . . . . . Authchips . | . . . . . . . . . . . . . . . Time . | . . . . . . . . . . . . . . . Total Part Build Rating . | . . . . . . . . . . . . . . . Parts Repaired . | . . . . . . . . . . . . . . . Time . | . . . . . . . . . . . . . . . Parts Recycled . | . . . . . . . . . . . . . . . Recycled Matter . | . . . . . . . . . . . . . . . Retrieved Matter . | . . . . . . . . . . . . . . . Retrieved Components . | . . . . . . . . . . . . . . . Parts Scanalyzed . | . . . . . . . . . . . . . . . Part Schematics Acquired . | . . . . . . . . . . . . . . . Parts Damaged . | . . . . . . . . . . . . . . . Bothacking | -11 -10 -10 -10 -9 -8 -8 -8 -6 -6 -6 -5 -5 -4 -4 ------------ Run | Jun Mat Min Exi Min Mat Sto Rec Fac Was Fac Fac DSF Fac Ext Used RIF Installer . | . . . . . . . . . . . . . . . Robots Hacked . | . . . . . . . . . . . . . . . Non-combat . | . . . . . . . . . . . . . . . Combat . | . . . . . . . . . . . . . . . Robot Hacks Applied . | . . . . . . . . . . . . . . . Relay Couplers Released . | . . . . . . . . . . . . . . . Fabnet Peak Effective % . | . . . . . . . . . . . . . . . Robots Rewired . | . . . . . . . . . . . . . . . Allies Hacked . | . . . . . . . . . . . . . . . Hacks Repelled . | . . . . . . . . . . . . . . . Allies | -11 -10 -10 -10 -9 -8 -8 -8 -6 -6 -6 -5 -5 -4 -4 -------- Run | Jun Mat Min Exi Min Mat Sto Rec Fac Was Fac Fac DSF Fac Ext Total Allies 3 | . . . . 1 1 . . . 1 . . . . . Largest Group 1 | . . . . 1 1 . . . 1 . . . . . Highest-Rated Group 130 | . . . . 31 31 . . . 130 . . . . . Highest-Rated Ally 130 | . . . . 31 31 . . . 130 . . . . . Total Orders . | . . . . . . . . . . . . . . . Ally Attacks 28 | . . . . . 20 . . . 8 . . . . . Total Damage 738 | . . . . . 369 . . . 369 . . . . . Kills 5 | . . . . . 4 . . . 1 . . . . . Allies Corrupted . | . . . . . . . . . . . . . . . Allies Melted . | . . . . . . . . . . . . . . . Field Lobotomies 2 | . . . . . 1 . . . 1 . . . . . Intel | -11 -10 -10 -10 -9 -8 -8 -8 -6 -6 -6 -5 -5 -4 -4 ------- Run | Jun Mat Min Exi Min Mat Sto Rec Fac Was Fac Fac DSF Fac Ext Robot Analysis Total 3 | . . . . . 3 . . . . . . . . . Derelict Logs Recovered 2 | . . . . 2 . . . . . . . . . . Drone Launches . | . . . . . . . . . . . . . . . Drone Recoveries . | . . . . . . . . . . . . . . . Exploration | -11 -10 -10 -10 -9 -8 -8 -8 -6 -6 -6 -5 -5 -4 -4 ------------- Run | Jun Mat Min Exi Min Mat Sto Rec Fac Was Fac Fac DSF Fac Ext Turns Passed 5720 | 5 298 401 531 288 1138 264 487 231 187 838 99 139 748 66 Spaces Moved 2953 | 3 235 159 221 120 406 117 259 130 127 437 81 82 482 94 Core 189 | . . . . . . . . . 54 46 . . 89 . Treads 1729 | . . 135 221 120 355 117 259 130 73 174 . 2 143 . Legs . | . . . . . . . . . . . . . . . Wheels 739 | 3 235 24 . . 51 . . . . 217 81 80 48 . Hover 191 | . . . . . . . . . . . . . 129 62 Flight 105 | . . . . . . . . . . . . . 73 32 Fastest Speed 27 | 95 95 110 240 240 125 156 152 171 50 100 115 114 35 27 Average Speed 152 | 95 99 220 240 240 158 159 155 171 130 155 115 125 111 55 Slowest Speed 650 | 95 110 240 240 240 250 160 171 171 288 243 115 130 650 70 Overloaded Moves . | . . . . . . . . . . . . . . . Propulsion Burnouts . | . . . . . . . . . . . . . . . Robots Hopped 2 | . . . . . . . . . . . . . 1 1 Cave-ins Triggered . | . . . . . . . . . . . . . . . Exploration Rate (%) 33 | 2 48 43 59 40 40 26 54 4 72 15 3 69 14 12 Regions Visited 14 Branch Regions 6 Pre-discovered Areas 2 | . . . . 2 . . . . . . . . . . Known Exits Taken 1 | . . . . . . . . . . . 1 . . . Unknown Exits Taken 10 | 1 1 1 1 1 1 1 1 . . 1 . . 1 . Scrap Searched 2 | . . 1 . 1 . . . . . . . . . . Spaces Dug 12 | . . . . . . . . . . . . . 12 . Terrain Destroyed 137 | . . . . . . . . . . 11 . . 126 . Melee . | . . . . . . . . . . . . . . . Projectile 5 | . . . . . . . . . . . . . 5 . AOE 132 | . . . . . . . . . . 11 . . 121 . Terrain Rammed . | . . . . . . . . . . . . . . . Walls Destroyed . | . . . . . . . . . . . . . . . Machines Disabled . | . . . . . . . . . . . . . . . Actions | -11 -10 -10 -10 -9 -8 -8 -8 -6 -6 -6 -5 -5 -4 -4 --------- Run | Jun Mat Min Exi Min Mat Sto Rec Fac Was Fac Fac DSF Fac Ext Total 3837 | 4 267 181 223 121 776 150 347 138 138 534 86 112 653 107 Wait 499 | . 10 2 . 2 251 . 71 . . 22 . 23 110 8 Move 2936 | 2 234 158 220 119 405 116 258 130 126 436 80 81 479 92 Hop 2 | . . . . . . . . . . . . . 1 1 Pick Up 58 | . 2 5 1 . 18 2 4 3 . 8 2 2 11 . Fast Attach 25 | . 2 . . . 4 1 1 . 1 7 . . 9 . Attach 54 | . . 1 2 . 16 2 1 4 4 5 2 . 12 5 Detach 7 | . . . . . 2 . . . . . . . 4 1 Swap 14 | 2 1 . . . 3 3 . . . 2 2 . 1 . Drop 33 | . 2 . . . 5 2 11 . 1 6 . 2 4 . Fire 203 | . 16 15 . . 72 24 1 1 2 48 . 3 21 . Melee 2 | . . . . . . . . . 2 . . . . . Ram 2 | . . . . . . . . . 1 . . . 1 . Kick . | . . . . . . . . . . . . . . . Crush 2 | . . . . . . . . . 1 . . 1 . . Escape Stasis . | . . . . . . . . . . . . . . . Rewire . | . . . . . . . . . . . . . . . Trap . | . . . . . . . . . . . . . . . Miscellaneous . | . . . . . . . . . . . . . . . Route ------- -11/Junkyard -10/Materials -10/Mines -10/Exiles -9/Mines -8/Materials -8/Storage -8/Recycling -6/Factory -6/Waste -6/Factory -5/Factory -5/DSF -4/Factory -4/Extension History --------- Turn | Location | Event 4 | -11/Junkyard | Discovered new exit (range 2) 6 | -11/Junkyard | Entered Materials 202 | -10/Materials | Discovered new exit (range 15) 304 | -10/Materials | Entered Mines 307 | -10/Mines | Build established: Mutant 658 | -10/Mines | Assembled infested the area 663 | -10/Mines | Assisted by a Guerilla fighting off Assembled 696 | -10/Mines | Deemed a non-threat by the Exiles lab entrance 696 | -10/Mines | Discovered new exit (range 5) 705 | -10/Mines | Entered Exiles 765 | -10/Exiles | Met 8R-AWN 806 | -10/Exiles | Met EX-HEX 876 | -10/Exiles | Met EX-BIN 905 | -10/Exiles | Aligned with FarCom system 907 | -10/Exiles | Given EX-Vault access code 962 | -10/Exiles | Opened EX-Vault 979 | -10/Exiles | Found Field Lobotomy Kit 1030 | -10/Exiles | Warned to stay clear of 0b10 Research branches 1098 | -10/Exiles | Met EX-DEC 1212 | -10/Exiles | Discovered new exit (range 11) 1236 | -10/Exiles | Left Exiles lab with Field Lobotomy Kit 1236 | -10/Exiles | Entered Mines 1280 | -9/Mines | Learned location of Zion (-6) 1367 | -9/Mines | Met a Derelict testing a Signal Generator 1500 | -9/Mines | Discovered new exit (range 9) 1524 | -9/Mines | Entered Materials 1524 | -8/Materials | Accompanied by 1 ally 1524 | -8/Materials | Evolved 4 slots: Propulsion x2, Utility x2 1717 | -8/Materials | Assimilated L-31 Rogue with FLK Orb 1758 | -8/Materials | Lost 6 parts (1p1n2u2w) 2061 | -8/Materials | Build established: Skirmisher 2598 | -8/Materials | Build established: Scavenger-Mutant 2603 | -8/Materials | Discovered new exit (range 9) 2662 | -8/Materials | Entered Storage 2919 | -8/Storage | Used back door to open Recycling access 2919 | -8/Storage | Discovered new exit (range 5) 2926 | -8/Storage | Entered Recycling 2927 | -8/Recycling | Joined Warlord attack on 0b10 via Recycling 2928 | -8/Recycling | Found Scrap Engine 3195 | -8/Recycling | Build established: Mutant 3277 | -8/Recycling | Discovered new exit (range 15) 3413 | -8/Recycling | Entered Factory 3413 | -6/Factory | Evolved 4 slots: Power x1, Utility x2, Weapon x1 3644 | -6/Factory | Sucked down chute 3644 | -6/Factory | Entered Waste 3659 | -6/Waste | EMP discharged 3684 | -6/Waste | Spotted C-40 Crusher 3689 | -6/Waste | Spotted C-40 Crusher 3691 | -6/Waste | Spotted C-40 Crusher 3709 | -6/Waste | Spotted C-40 Crusher 3722 | -6/Waste | Build established: Scavenger-Skirmisher 3723 | -6/Waste | Spotted C-40 Crusher 3734 | -6/Waste | Crushed by Compactor (1 part destroyed, 1 dropped) 3744 | -6/Waste | Crushed by Compactor (1 part destroyed, 1 dropped) 3746 | -6/Waste | Crushed by Compactor (1 part destroyed, 2 dropped) 3747 | -6/Waste | Crushed by Compactor (0 parts destroyed, 1 dropped) 3750 | -6/Waste | Assimilated C-40 Crusher with FLK Orb 3750 | -6/Waste | Crushed by Compactor (0 parts destroyed, 1 dropped) 3756 | -6/Waste | Crushed by Compactor (0 parts destroyed, 1 dropped) 3759 | -6/Waste | EMP discharged 3759 | -6/Waste | System corruption reached 10% 3759 | -6/Waste | Crushed by Compactor (1 part destroyed) 3762 | -6/Waste | Crushed by Compactor (1 part destroyed, 1 dropped) 3767 | -6/Waste | Allies destroyed C-40 Crusher 3768 | -6/Waste | Crushed by Compactor (0 parts destroyed, 1 dropped) 3789 | -6/Waste | Crushed by Compactor (0 parts destroyed, 1 dropped) 3796 | -6/Waste | Lost 6 parts (2n2u2w) 3796 | -6/Waste | Spotted C-40 Crusher 3821 | -6/Waste | Discovered new exit (range 15) 3831 | -6/Waste | Entered Factory 4301 | -6/Factory | Build established: Scavenger-Gunner 4589 | -6/Factory | Garrison activated, responded to threat 4638 | -6/Factory | Discovered new exit (range 15) 4669 | -6/Factory | Entered another Factory area 4669 | -5/Factory | Evolved 2 slots: Utility x2 4768 | -5/Factory | Identified exit to DSF 4768 | -5/Factory | Entered DSF 4800 | -5/DSF | Additional patrols routed to DSF 4876 | -5/DSF | Discovered new exit (range 12) 4907 | -5/DSF | Entered Factory 4907 | -4/Factory | Evolved 2 slots: Utility x2 5233 | -4/Factory | Build established: Gunner 5248 | -4/Factory | Lost 3 parts (1p1n1u) 5407 | -4/Factory | Lost 11 parts (1p2n3u5w) 5512 | -4/Factory | Spotted B-86 Titan 5572 | -4/Factory | Core integrity fell below 50% 5631 | -4/Factory | Build established: Mutant 5650 | -4/Factory | Core integrity fell below 20% 5652 | -4/Factory | Discovered new exit (range 6) 5655 | -4/Factory | Entered Extension 5657 | -4/Extension | System corruption reached 10% 5686 | -4/Extension | Lost 8 parts (1p2n3u2w) 5721 | -4/Extension | Destroyed by Y-64 Sentinel with KE Penetrator Last Messages --------------- 05643_ System corrupted by crushing effect (+2). 05646_ Penetrated by Slug. 05647_ Knocked back. 05650_ Imp. Gyrokinetic Inverter severed. 05651_ Knocked back. 05652_ EXIT=FOUND 05655_ Cmb. Gravmag System destroyed. 05655_ Knocked back. LOCATION=UNKNOWN GOAL=ESCAPE 05655_ Receiving FarCom transmissions... 05656_ System corrupted: Matter fused (-9). 05656_ Integrated Corrupted Imp. Surge Thruster (+7). 05657_ Integrated Corrupted Imp. Surge Thruster (+10). 05688_ System corrupted: Matter fused (-10). 05704_ ZX5M